bitfinex/quotes_ETHUSD_20240630
["timestamp","ask_amount","ask_price","bid_price","bid_amount"]
[1719713716693,2.4348,3379.1,3378.0,0.32765672]
[1719713716863,2.4348,3379.1,3378.6,0.55]
[1719713717067,0.4983246,3379.0,3378.6,0.55]
[1719713717268,0.4983246,3379.0,3378.2,0.858]
[1719713717724,0.4983246,3379.0,3378.2,1.716]
[1719713717877,0.37911246,3378.9,3378.2,1.716]
[1719713718080,0.37911246,3378.9,3378.3,0.55]
[1719713718248,0.08153509,3378.8,3378.3,0.55]
[1719713720591,2.4348,3379.1,3378.3,0.55]
[1719713720776,0.08151083,3378.7,3378.3,0.55]
[1719713720985,2.4348,3379.1,3378.3,0.55]
[1719713721188,0.08148657,3378.6,3378.4,0.858]
[1719713721368,0.40865925,3379.0,3378.5,0.55]
[1719713721569,2.4348,3379.1,3378.5,0.55]
[1719713722157,2.4348,3379.1,3378.7,0.858]
[1719713722375,2.4348,3379.1,3378.8,0.55]
[1719713725072,2.3456,3379.7,3378.9,0.858]
[1719713725483,7.33,3379.9,3379.2,0.858]
[1719713725713,7.33,3379.9,3379.3,0.55]
[1719713729422,2.3456,3380.0,3379.3,0.55]
[1719713730827,0.08085085,3379.9,3379.3,0.55]
[1719713735620,0.08085085,3379.9,3379.2,0.55]
[1719713739932,2.4858,3379.7,3378.8,1.0321]
[1719713740106,0.08082517,3379.6,3378.8,1.0321]
[1719713740313,0.08082517,3379.6,3378.8,1.8901]
[1719713740627,0.08082517,3379.6,3378.8,2.07911]
[1719713741189,0.08082517,3379.6,3378.9,0.55]
[1719713741428,0.08082517,3379.6,3378.9,3.55]
[1719713743526,2.4858,3379.5,3378.9,3.55]
[1719713743826,0.08076007,3379.4,3378.9,0.55]
[1719713747611,0.08076007,3379.4,3378.8,0.55]
[1719713750251,0.08076007,3379.4,3379.0,0.858]
[1719713750447,0.08076007,3379.4,3379.1,0.55]
[1719713750615,7.33,3379.8,3379.1,0.55]
[1719713750811,0.08066389,3379.3,3379.1,0.55]
[1719713751027,7.33,3379.8,3379.1,0.55]
[1719713751223,0.08066592,3379.2,3379.1,0.55]
[1719713751426,7.33,3379.8,3379.1,0.55]
[1719713751652,0.97494,3379.7,3379.1,0.55]
[1719713751832,1.05572716,3379.7,3379.1,0.55]
[1719713755221,0.08078716,3379.7,3379.1,0.55]
[1719713759402,0.08078716,3379.7,3379.3,0.858]
[1719713759623,0.08078716,3379.7,3379.4,0.55]
[1719713759727,0.07805201,3379.6,3379.4,0.55]
[1719713759961,7.33,3379.8,3379.4,0.55]
[1719713760192,0.07807625,3379.7,3379.4,0.55]
[1719713760373,7.33,3379.8,3379.4,0.55]
[1719713760674,0.07807625,3379.7,3379.4,0.55]
[1719713760850,0.07807625,3379.7,3379.4,0.70821]
[1719713761048,7.33,3379.8,3379.4,0.70821]
[1719713761240,0.07805201,3379.6,3379.4,0.70821]
[1719713761469,7.33,3379.8,3379.4,0.70821]
[1719713761856,0.07807625,3379.7,3379.4,0.70821]
[1719713762417,7.33,3379.8,3379.6,0.1741]
[1719713762696,7.33,3380.3,3379.7,0.55]
[1719713762876,7.33,3380.3,3379.8,0.858]
[1719713763088,7.33,3380.3,3379.9,0.55]
[1719713764347,10.33453685,3380.3,3379.7,0.55]
[1719713765339,7.33,3380.3,3379.7,0.55]
[1719713766379,7.33,3380.3,3379.8,0.858]
[1719713766562,7.33,3380.3,3379.9,0.55]
[1719713768084,2.4564,3380.5,3379.9,0.55]
[1719713771485,7.33,3380.7,3379.9,0.55]
[1719713771795,12.5982,3380.7,3379.9,0.55]
[1719713771985,12.5982,3380.7,3380.0,0.1741]
[1719713775694,0.07839258,3380.6,3380.0,0.1741]
[1719713776882,0.07839258,3380.6,3379.9,0.55]
[1719713777087,0.93639258,3380.6,3379.9,0.55]
[1719713777299,1.35345926,3380.5,3379.7,0.55]
[1719713777711,0.07842435,3380.4,3379.7,0.55]
[1719713779320,0.07842435,3380.4,3379.8,0.858]
[1719713779497,0.07842435,3380.4,3379.9,0.55]
[1719713779839,0.07840011,3380.3,3379.9,0.55]
[1719713780321,1.34562,3380.6,3379.9,0.55]
[1719713780524,0.0757081,3380.2,3379.9,0.55]
[1719713780742,1.34562,3380.6,3379.9,0.55]
[1719713780961,0.07568387,3380.1,3379.9,0.55]
[1719713781109,1.34562,3380.6,3379.9,0.55]
[1719713781314,0.07565963,3380.0,3379.9,0.55]
[1719713781526,1.480182,3380.5,3379.9,0.55]
[1719713781711,0.07565963,3380.0,3379.9,0.55]
[1719713781904,12.5982,3380.7,3379.9,0.55]
[1719713782124,0.07565963,3380.0,3379.9,0.55]
[1719713782326,1.34562,3380.6,3379.9,0.55]
[1719713782829,0.07578081,3380.5,3379.9,0.55]
[1719713785724,2.4194,3380.4,3379.4,0.1741]
[1719713785927,3.82136008,3380.4,3379.5,1.408]
[1719713786234,0.07573234,3380.3,3379.5,1.408]
[1719713788015,0.07573234,3380.3,3379.7,0.858]
[1719713791240,0.07573234,3380.3,3379.9,0.858]
[1719713791422,0.07573234,3380.3,3380.0,0.55]
[1719713791634,7.33,3380.7,3380.0,0.55]
[1719713791825,0.0756984,3380.2,3380.0,0.55]
[1719713792148,7.33,3380.7,3380.0,0.55]
[1719713792338,0.07567417,3380.1,3380.0,0.55]
[1719713792550,8.188,3380.7,3379.9,0.55]
[1719713792739,0.07567417,3380.1,3379.9,0.70821]
[1719713792929,8.188,3380.7,3379.9,0.55]
[1719713793129,0.07564993,3380.0,3379.9,0.55]
[1719713793326,8.188,3380.7,3379.9,0.55]
[1719713793532,0.07564993,3380.0,3379.9,0.55]
[1719713793730,8.188,3380.7,3379.9,0.55]
[1719713793931,0.07564993,3380.0,3379.9,0.55]
[1719713794135,11.19253685,3380.7,3379.9,0.55]
[1719713794341,0.07564993,3380.0,3379.9,0.55]
[1719713794534,8.188,3380.7,3379.9,0.55]
[1719713794751,0.07564993,3380.0,3379.9,0.55]
[1719713795237,8.188,3380.7,3379.9,0.55]
[1719713795548,0.07564993,3380.0,3379.9,0.55]
[1719713796051,8.188,3380.7,3379.9,0.55]
[1719713796244,0.07564993,3380.0,3379.9,0.55]
[1719713796450,8.188,3380.7,3379.9,0.55]
[1719713796760,0.07564993,3380.0,3379.9,0.55]
[1719713796959,8.188,3380.7,3379.9,0.55]
[1719713797183,0.07564993,3380.0,3379.9,0.55]
[1719713797389,1.06074,3380.6,3379.9,0.55]
[1719713797899,0.07578494,3380.5,3379.9,0.55]
[1719713798753,0.07578494,3380.5,3379.9,1.408]
[1719713799066,0.07578494,3380.5,3380.2,1.0321]
[1719713799453,7.33,3380.7,3380.2,1.0321]
[1719713799647,0.07577732,3380.4,3380.2,1.0321]
[1719713799945,7.33,3380.7,3380.2,1.19031]
[1719713800258,7.33,3380.7,3380.6,0.858]
[1719713800452,19.63,3381.1,3380.6,1.5821]
[1719713800667,19.63,3381.1,3380.7,0.55]
[1719713800980,19.63,3381.1,3380.8,0.858]
[1719713801178,19.63,3381.1,3380.9,0.55]
[1719713803948,27.26,3381.6,3380.9,0.55]
[1719713804145,7.33,3381.6,3380.9,0.55]
[1719713804484,1.04392,3381.5,3380.9,0.55]
[1719713805445,1.04392,3381.5,3380.7,0.55]
[1719713805642,0.07592806,3381.4,3380.7,0.55]
[1719713808261,0.07592806,3381.4,3380.9,0.1741]
[1719713808580,0.07592806,3381.4,3381.0,0.70821]
[1719713808747,7.33,3381.6,3381.0,0.55]
[1719713809147,0.07595229,3381.5,3381.0,0.55]
[1719713811373,0.07595229,3381.5,3380.7,0.858]
[1719713811609,0.07595229,3381.5,3380.8,0.55]
[1719713811820,0.91383908,3381.4,3380.7,0.55]
[1719713812091,0.07601857,3381.3,3380.7,0.55]
[1719713814154,2.2512,3381.2,3380.7,0.55]
[1719713814359,0.40007173,3381.1,3380.4,1.408]
[1719713814558,0.07596596,3381.1,3380.4,1.408]
[1719713820612,2.2512,3381.2,3380.4,1.408]
[1719713820917,0.07593556,3381.1,3380.4,1.408]
[1719713822776,0.07593556,3381.1,3380.4,0.55]
[1719713822974,0.23271356,3381.0,3380.3,0.55]
[1719713823412,0.07584011,3380.9,3380.3,0.55]
[1719713825319,0.07584011,3380.9,3380.4,0.858]
[1719713825517,9.5812,3381.2,3380.5,0.55]
[1719713825697,0.07575861,3380.8,3380.5,0.55]
[1719713826026,12.58573685,3381.2,3380.5,0.55]
[1719713826027,0.07573437,3380.7,3380.5,0.55]
[1719713826337,12.58573685,3381.2,3380.5,0.55]
[1719713826985,0.07583131,3381.1,3380.5,0.55]
[1719713831207,1.28469773,3381.1,3380.5,0.55]
[1719713832202,0.07583131,3381.1,3380.5,0.55]
[1719713837908,2.2586,3381.0,3380.5,0.55]
[1719713838109,2.2586,3381.0,3380.3,1.408]
[1719713838110,2.33414725,3381.0,3380.3,1.408]
[1719713839353,5.3386841,3381.0,3380.3,1.408]
[1719713839810,2.4344,3380.9,3380.3,0.55]
[1719713840006,2.4344,3380.9,3379.8,1.185081]
[1719713840007,2.4344,3380.9,3380.2,0.858]
[1719713840242,0.07544094,3380.8,3380.3,0.55]
[1719713842548,0.32642503,3380.8,3379.9,3.0]
[1719713842781,2.4344,3380.6,3379.7,1.0321]
[1719713843246,2.4344,3380.6,3379.7,0.858]
[1719713843247,0.07533229,3380.5,3379.7,0.858]
[1719713844011,0.07533229,3380.5,3379.8,0.55]
[1719713845252,2.4344,3380.4,3379.8,0.55]
[1719713845620,0.07526583,3380.3,3379.8,0.55]
[1719713846155,0.07526583,3380.3,3379.9,0.858]
[1719713846356,0.07526583,3380.3,3380.0,0.55]
[1719713849447,0.07526583,3380.3,3380.1,0.858]
[1719713861175,0.07526583,3380.3,3380.0,0.55]
[1719713862399,0.07526583,3380.3,3379.8,0.55]
[1719713879806,2.2521,3380.2,3379.8,0.55]
[1719713879985,2.3255367,3380.2,3379.8,0.55]
[1719713882596,2.3255367,3380.2,3379.9,0.55]
[1719713883103,2.3255367,3380.2,3379.8,0.55]
[1719713883475,2.55809037,3380.2,3379.6,0.55]
[1719713883678,2.55809037,3380.2,3379.5,0.55]
[1719713884011,2.2521,3380.0,3379.5,0.55]
[1719713884218,2.2521,3380.0,3379.4,3.0]
[1719713884377,0.07337717,3379.9,3379.4,0.858]
[1719713885713,2.2521,3380.0,3379.6,0.858]
[1719713885921,0.07335919,3379.9,3379.7,0.55]
[1719713886083,2.2521,3380.0,3379.8,0.858]
[1719713886283,0.07332045,3379.9,3379.8,0.858]
[1719713886602,0.07332045,3379.9,3379.8,1.408]
[1719713886800,2.2521,3380.0,3379.8,1.408]
[1719713886973,0.07332045,3379.9,3379.8,1.408]
[1719713887175,2.2521,3380.0,3379.8,1.408]
[1719713887377,0.07330802,3379.9,3379.8,1.408]
[1719713889085,0.07330802,3379.9,3379.8,0.55]
[1719713889491,0.07330802,3379.9,3379.5,0.55]
[1719713889714,2.2521,3379.8,3379.5,0.55]
[1719713889879,0.07328995,3379.7,3379.5,0.55]
[1719713890082,2.2521,3379.8,3379.5,0.55]
[1719713890480,0.07328995,3379.7,3379.5,0.55]
[1719713890813,2.2521,3379.8,3379.5,0.55]
[1719713891016,0.07334626,3379.6,3379.5,0.55]
[1719713891203,2.2521,3379.8,3379.5,0.55]
[1719713891405,0.07334626,3379.6,3379.5,0.55]
[1719713891629,2.2521,3379.8,3379.5,0.55]
[1719713891840,0.07334626,3379.6,3379.3,0.858]
[1719713892020,2.2521,3379.8,3379.4,0.55]
[1719713892534,0.07320327,3379.7,3379.4,0.55]
[1719713892723,2.2521,3379.8,3379.4,0.55]
[1719713892924,0.07320327,3379.7,3379.4,0.55]
[1719713893129,2.2521,3379.8,3379.4,0.55]
[1719713893304,0.07317902,3379.6,3379.4,0.55]
[1719713893640,2.2521,3379.8,3379.4,0.55]
[1719713893794,0.07315477,3379.5,3379.4,0.55]
[1719713893997,2.2521,3379.8,3379.4,0.55]
[1719713894198,0.07315477,3379.5,3379.4,0.55]
[1719713894431,2.2521,3379.8,3379.4,0.55]
[1719713894629,0.07315477,3379.5,3379.4,0.55]
[1719713895135,2.2521,3379.8,3379.4,0.55]
[1719713895303,0.07315477,3379.5,3379.4,0.55]
[1719713895638,2.2521,3379.8,3379.4,0.55]
[1719713895825,0.07315477,3379.5,3379.4,0.55]
[1719713896022,2.2521,3379.8,3379.4,0.55]
[1719713896226,0.07315477,3379.5,3379.4,0.55]
[1719713896735,2.2521,3379.8,3379.4,0.55]
[1719713896942,0.07315477,3379.5,3379.4,0.55]
[1719713897139,2.2521,3379.8,3379.4,0.55]
[1719713897362,0.07315477,3379.5,3379.4,0.55]
[1719713897506,2.2521,3379.8,3379.4,0.55]
[1719713897845,0.07320327,3379.7,3379.4,0.55]
[1719713898245,2.2521,3379.8,3379.4,0.55]
[1719713898439,0.07317902,3379.6,3379.4,0.55]
[1719713898746,0.07318162,3379.5,3379.4,0.55]
[1719713898943,2.2521,3379.8,3379.4,0.55]
[1719713899109,0.07318162,3379.5,3379.4,0.55]
[1719713899311,2.2521,3379.8,3379.4,0.55]
[1719713899618,0.07323012,3379.7,3379.4,0.858]
[1719713899830,2.2521,3379.8,3379.5,0.55]
[1719713900021,0.0731851,3379.6,3379.5,0.55]
[1719713900229,2.2521,3379.8,3379.5,0.55]
[1719713900433,0.0731851,3379.6,3379.5,0.55]
[1719713900633,2.2521,3379.8,3379.5,0.55]
[1719713900836,0.0731851,3379.6,3379.4,0.858]
[1719713901150,0.07316086,3379.5,3379.4,0.858]
[1719713901347,2.2521,3379.8,3379.4,1.408]
[1719713901643,0.07316086,3379.5,3379.4,1.408]
[1719713901848,2.2521,3379.8,3379.4,1.408]
[1719713902316,0.07320935,3379.7,3379.4,1.408]
[1719713902516,2.2521,3379.8,3379.4,0.858]
[1719713902713,0.07320935,3379.7,3378.8,3.0]
[1719713902930,0.07320935,3379.7,3378.8,0.858]
[1719713902931,2.4208,3379.6,3378.8,0.858]
[1719713903133,2.4208,3379.4,3378.8,0.858]
[1719713903328,0.07292133,3379.3,3378.8,0.858]
[1719713904245,0.07292133,3379.3,3378.9,0.55]
[1719713904473,0.07292133,3379.3,3378.8,0.858]
[1719713913326,0.07292133,3379.3,3379.0,0.858]
[1719713914057,0.07292133,3379.3,3378.8,0.1741]
[1719713914237,0.07292133,3379.3,3379.2,0.858]
[1719713914438,2.4134,3379.6,3379.2,0.858]
[1719713914637,0.0728543,3379.3,3379.2,0.858]
[1719713914837,2.4134,3379.6,3379.2,0.858]
[1719713915033,0.0728543,3379.3,3379.2,0.858]
[1719713915263,2.4134,3379.6,3379.2,0.858]
[1719713915760,0.07290281,3379.5,3379.2,0.858]
[1719713917962,0.07290281,3379.5,3379.0,0.858]
[1719713918525,0.66620419,3379.5,3378.5,3.0]
[1719713918759,0.66620419,3379.5,3378.2,0.47143725]
[1719713918760,2.2654,3379.4,3378.2,0.47143725]
[1719713918962,2.3383414,3379.4,3378.6,0.858]
[1719713920151,3.45030568,3379.4,3378.6,0.858]
[1719713920527,3.45030568,3379.4,3378.6,3.858]
[1719713920732,3.45030568,3379.4,3378.6,0.858]
[1719713920942,4.30830568,3379.4,3378.5,0.55]
[1719713921226,0.49016071,3379.3,3378.5,0.55]
[1719713921466,0.56302193,3379.3,3378.5,0.55]
[1719713923671,0.56302193,3379.3,3378.4,0.858]
[1719713923832,0.56302193,3379.3,3378.2,0.1741]
[1719713924028,0.56302193,3379.3,3378.4,0.858]
[1719713925350,0.07286122,3379.3,3378.4,0.858]
[1719713926132,0.07286122,3379.3,3378.3,0.858]
[1719713926362,0.858,3379.2,3377.4,3.0]
[1719713926566,8.188,3379.0,3377.9,1.185753]
[1719713926867,8.188,3379.0,3378.0,1.408]
[1719713927047,0.0727695,3378.9,3378.0,1.408]
[1719713927243,0.0727695,3378.9,3378.0,4.408]
[1719713927444,0.0727695,3378.9,3378.1,3.0]
[1719713927650,0.41426155,3378.9,3378.0,1.408]
[1719713927879,0.41426155,3378.9,3378.0,0.858]
[1719713928165,0.41426155,3378.9,3377.9,0.858]
[1719713928366,0.86022616,3378.8,3377.9,0.858]
[1719713928571,0.93297141,3378.8,3377.9,0.858]
[1719713929350,0.858,3378.6,3377.5,1.185865]
[1719713929583,0.07241644,3378.5,3377.5,1.185865]
[1719713930060,1.68404164,3378.4,3377.5,1.185865]
[1719713930258,0.858,3378.2,3377.5,1.185865]
[1719713930582,0.07229419,3378.1,3377.5,1.185865]
[1719713932465,0.858,3378.0,3377.5,1.185865]
[1719713932664,0.07229419,3378.1,3377.5,1.185865]
[1719713932665,0.858,3377.8,3377.5,1.185865]
[1719713932975,0.07208636,3377.7,3377.5,1.185865]
[1719713933179,0.858,3377.8,3377.5,1.185865]
[1719713933366,0.07207846,3377.6,3377.5,1.185865]
[1719713933886,0.858,3377.8,3377.5,1.185865]
[1719713934091,0.07207846,3377.6,3377.5,1.185865]
[1719713934291,3.584,3378.0,3377.5,1.185865]
[1719713934484,0.07207846,3377.6,3377.0,0.858]
[1719713934665,3.584,3378.0,3377.0,0.858]
[1719713934867,0.07205418,3377.5,3377.0,0.858]
[1719713935283,1.0914,3377.9,3377.0,0.858]
[1719713935456,0.0720299,3377.4,3377.0,0.858]
[1719713935659,1.0914,3377.9,3377.0,0.858]
[1719713935879,0.07200562,3377.3,3377.0,0.858]
[1719713936190,3.584,3378.0,3376.6,0.05922347]
[1719713936191,0.07198134,3377.2,3376.6,0.05922347]
[1719713936390,0.07198134,3377.2,3377.1,0.858]
[1719713936553,7.33,3377.5,3377.1,0.858]
[1719713936889,0.07195237,3377.4,3377.1,0.858]
[1719713941169,2.4754,3377.7,3377.1,0.858]
[1719713941366,2.4754,3377.7,3377.3,0.858]
[1719713941790,7.33,3377.9,3377.5,0.858]
[1719713941956,7.33,3377.9,3377.8,0.858]
[1719713946864,19.93,3378.3,3377.8,0.858]
[1719713950286,22.93453685,3378.3,3377.8,0.858]
[1719713950515,19.93,3378.3,3377.8,0.858]
[1719713952698,19.93,3378.3,3377.1,0.1741]
[1719713952999,9.8054,3378.5,3377.7,0.858]
[1719713953174,12.18776262,3378.5,3377.7,0.858]
[1719713953374,12.18776262,3378.5,3377.1,0.1741]
[1719713953576,13.04576262,3378.5,3377.5,0.858]
[1719713954389,13.04576262,3378.5,3377.7,0.858]
[1719713954390,12.18776262,3378.5,3377.7,0.858]
[1719713955507,2.53457626,3378.4,3377.7,0.858]
[1719713955661,2.60431683,3378.4,3377.7,0.858]
[1719713970835,0.06974057,3378.4,3377.7,0.858]
[1719713983524,2.4843,3378.3,3377.7,0.858]
[1719713983929,0.06963669,3378.2,3377.7,0.858]
[1719713987720,2.4843,3378.1,3377.6,0.858]
[1719713988244,0.06958258,3378.0,3377.5,0.858]
[1719713988614,0.06958258,3378.0,3377.5,1.716]
[1719713990659,2.4843,3377.9,3377.1,0.858]
[1719713990864,2.55384856,3377.9,3377.1,0.858]
[1719713993278,2.55384856,3377.9,3376.7,1.186169]
[1719713993279,0.858,3377.8,3376.7,1.186169]
[1719713993571,2.4843,3377.5,3376.8,0.55]
[1719713993923,2.4843,3377.3,3376.8,0.55]
[1719713994381,0.06933643,3377.2,3376.4,1.186289]
[1719713994531,0.06933643,3377.2,3376.7,0.858]
[1719713995494,0.06933643,3377.2,3376.1,0.858]
[1719713995495,2.4843,3377.1,3376.1,0.858]
[1719713995633,2.55352441,3377.1,3375.9,0.00080672]
[1719713995827,2.4843,3376.9,3376.2,0.858]
[1719713996236,2.4843,3376.9,3375.9,0.00080672]
[1719713996477,0.06922803,3376.8,3376.0,0.858]
[1719713996786,0.44450205,3376.8,3376.0,0.858]
[1719713997531,2.4843,3376.7,3376.1,0.858]
[1719713997832,0.06827603,3376.6,3376.0,0.858]
[1719713998779,0.06827603,3376.6,3375.9,0.00080672]
[1719713998780,2.38,3376.5,3375.9,0.00080672]
[1719713998978,0.858,3376.3,3375.9,0.00080672]
[1719713999178,2.38,3376.0,3375.9,0.00080672]
[1719713999378,2.7038,3376.0,3375.9,0.00080672]
[1719713999552,2.77153858,3376.0,3375.9,0.00080672]
[1719714001371,2.44773858,3376.0,3375.9,0.00080672]
[1719714001759,0.06773858,3376.0,3375.9,0.00080672]
[1719714002057,2.38,3376.4,3375.9,0.85880672]
[1719714002259,0.06759723,3376.0,3375.9,0.85880672]
[1719714002479,2.38,3376.4,3375.9,0.85880672]
[1719714002785,0.06761537,3376.0,3375.9,0.85880672]
[1719714003014,2.38,3376.4,3375.9,0.85880672]
[1719714003216,0.06761537,3376.0,3375.9,0.00080672]
[1719714003381,9.71,3376.7,3375.9,0.85880672]
[1719714003382,12.71453685,3376.7,3375.9,0.85880672]
[1719714003568,0.0675992,3376.0,3375.9,0.00080672]
[1719714003771,12.71453685,3376.7,3375.9,0.85880672]
[1719714004117,2.38,3376.1,3375.9,0.00080672]
[1719714004479,0.06765633,3376.0,3375.9,0.00080672]
[1719714016364,2.44765633,3376.0,3375.9,0.00080672]
[1719714018320,2.44765633,3376.0,3374.6,2.3587534]
[1719714018321,5.503,3375.9,3374.6,0.1166534]
[1719714018524,5.503,3375.6,3374.6,0.1166534]
[1719714018838,5.423,3375.2,3374.6,0.1166534]
[1719714019037,2.3,3375.0,3374.6,0.1166534]
[1719714019225,2.3,3375.0,3372.3,2.04443108]
[1719714019226,2.3,3374.8,3373.4,1.187171]
[1719714019443,2.3,3374.8,3372.3,1.42612141]
[1719714019444,2.3,3373.4,3372.3,1.42612141]
[1719714019780,5.25975401,3373.3,3372.3,1.42612141]
[1719714020211,0.06676118,3373.3,3372.3,1.42612141]
[1719714020987,0.06676118,3373.3,3372.3,1.45542636]
[1719714021134,0.06676118,3373.3,3372.9,2.068]
[1719714021333,0.23670827,3374.7,3372.4,0.82396536]
[1719714021334,2.3,3374.2,3372.4,0.82396536]
[1719714021577,0.06668961,3374.1,3372.4,0.53246536]
[1719714021883,0.06668961,3374.1,3372.3,1.39612141]
[1719714022089,0.06668961,3374.1,3372.4,0.55]
[1719714022243,0.06668961,3374.1,3372.3,1.39612141]
[1719714022244,2.3,3374.0,3372.3,1.39612141]
[1719714022438,0.23666896,3373.9,3372.3,1.39612141]
[1719714022754,0.30322914,3373.9,3372.3,1.39612141]
[1719714023181,0.30322914,3373.9,3372.3,3.46412141]
[1719714023381,0.30322914,3373.9,3372.7,2.068]
[1719714023382,0.06656018,3373.9,3372.7,2.068]
[1719714023694,0.06656018,3373.9,3372.3,1.39612141]
[1719714023995,0.06656018,3373.9,3372.3,4.39612141]
[1719714024194,3.18956018,3373.9,3372.3,4.39612141]
[1719714024359,3.123,3373.7,3372.3,4.39612141]
[1719714024771,3.123,3373.1,3372.3,1.39612141]
[1719714025091,2.3,3373.2,3372.3,1.39612141]
[1719714025092,0.06639218,3373.0,3372.3,1.39612141]
[1719714025269,0.23663922,3373.0,3372.3,1.39612141]
[1719714025467,0.06636227,3372.9,3372.3,1.39612141]
[1719714025904,10.453,3373.4,3372.3,1.39612141]
[1719714026123,0.06645964,3373.3,3372.3,1.39612141]
[1719714026280,0.06645964,3373.3,3372.3,4.39612141]
[1719714026469,3.123,3373.1,3372.3,4.39612141]
[1719714026676,3.123,3372.9,3372.3,1.39612141]
[1719714026869,0.06628065,3372.8,3372.3,1.39612141]
[1719714027075,4.17492807,3372.7,3372.3,1.39612141]
[1719714027299,3.123,3372.5,3372.3,1.39612141]
[1719714027468,0.06618325,3372.4,3372.3,1.39612141]
[1719714027672,10.51918325,3372.4,3372.3,1.39612141]
[1719714027970,10.51918325,3372.4,3372.2,1.54452541]
[1719714028175,4.40491832,3372.3,3372.2,1.54452541]
[1719714028575,4.40491832,3372.3,3371.3,0.1166534]
[1719714028576,5.02057669,3372.3,3371.3,0.1166534]
[1719714029185,2.3,3372.2,3371.3,0.1166534]
[1719714029524,5.02057669,3372.3,3371.3,0.1166534]
[1719714029525,3.123,3371.6,3371.3,0.1166534]
[1719714029733,10.453,3371.5,3371.3,0.1166534]
[1719714029936,0.06537803,3371.4,3371.3,0.1166534]
[1719714030809,3.18837803,3371.4,3371.3,0.1166534]
[1719714031010,4.24021583,3371.4,3371.3,0.1166534]
[1719714031208,1.11721583,3371.4,3371.3,0.1166534]
[1719714031397,10.74721583,3371.4,3371.0,2.59377672]
[1719714031585,0.55,3371.3,3371.0,2.59377672]
[1719714031924,3.123,3371.1,3371.0,2.59377672]
[1719714032310,7.33,3371.4,3371.0,2.59377672]
[1719714032515,0.09711223,3371.1,3371.0,2.59377672]
[1719714032823,7.33,3371.4,3371.0,2.59377672]
[1719714033124,7.33,3371.4,3371.1,3.0]
[1719714035326,5.67732749,3371.4,3371.1,3.0]
[1719714035634,12.3,3371.8,3371.1,3.0]
[1719714036409,5.67732749,3371.9,3371.4,2.07626]
[1719714036590,5.67732749,3371.9,3371.5,0.812626]
[1719714036800,19.93,3372.0,3371.5,0.812626]
[1719714036997,19.93,3372.0,3371.5,3.812626]
[1719714037928,19.93,3372.0,3371.5,5.888826]
[1719714038095,19.93,3372.0,3371.6,1.8043]
[1719714038302,19.93,3372.0,3371.6,5.7812386]
[1719714038629,19.93,3372.0,3371.6,3.0]
[1719714038800,19.93,3372.0,3371.1,3.0]
[1719714039239,2.068,3372.1,3371.1,3.0]
[1719714039545,5.90590058,3372.0,3371.1,3.0]
[1719714039843,2.92400584,3372.3,3371.1,3.0]
[1719714040042,0.09442202,3371.9,3371.1,3.0]
[1719714040244,2.92400584,3372.3,3371.1,3.0]
[1719714040730,0.0944275,3372.2,3371.1,3.0]
[1719714040932,2.16694083,3372.2,3371.1,3.55945767]
[1719714041713,2.16694083,3372.2,3371.1,3.0]
[1719714042823,5.28994083,3372.2,3371.1,3.0]
[1719714047207,2.16694083,3372.2,3371.1,3.0]
[1719714047323,0.0944275,3372.2,3371.1,3.0]
[1719714048381,0.0944275,3372.2,3371.6,2.07611]
[1719714048582,0.0944275,3372.2,3371.6,5.07611]
[1719714048787,0.0944275,3372.2,3371.7,1.8043]
[1719714048953,0.0944275,3372.2,3371.8,0.89566]
[1719714049152,0.0944275,3372.2,3371.8,3.89566]
[1719714049475,0.09443138,3372.1,3371.8,3.0]
[1719714049649,2.92400584,3372.6,3371.7,1.8043]
[1719714049997,2.92400584,3372.6,3371.1,4.8043]
[1719714049998,0.09457465,3372.5,3371.1,4.8043]
[1719714050150,0.84252805,3372.4,3371.1,3.0]
[1719714050350,4.06007946,3372.4,3371.1,3.0]
[1719714050853,6.12807946,3372.4,3371.1,3.0]
[1719714051053,6.12807946,3372.4,3371.0,2.59377672]
[1719714051291,3.123,3372.2,3371.0,2.59377672]
[1719714051758,0.09444428,3372.1,3371.0,2.59377672]
[1719714052282,0.09444428,3372.1,3371.1,3.0]
[1719714054651,3.21744428,3372.1,3371.1,3.0]
[1719714054835,0.72750287,3372.0,3371.1,3.0]
[1719714055119,0.09429021,3371.9,3371.1,3.0]
[1719714056812,3.123,3371.7,3371.0,2.59377672]
[1719714057178,0.09419251,3371.6,3371.0,2.59377672]
[1719714057388,3.96548984,3371.5,3371.0,2.59377672]
[1719714057828,0.09409847,3371.4,3371.0,2.59377672]
[1719714057986,3.123,3371.2,3371.0,2.59377672]
[1719714058420,0.09399096,3371.1,3371.0,2.59377672]
[1719714059034,5.64029096,3371.1,3371.0,2.59377672]
[1719714059174,7.17672064,3371.1,3371.0,2.59377672]
[1719714059377,6.62672064,3371.1,3371.0,2.59377672]
[1719714060069,7.17672064,3371.1,3371.0,2.59377672]
[1719714060561,7.17672064,3371.1,3368.1,2.34770526]
[1719714060562,5.5463,3369.6,3368.1,2.34770526]
[1719714060823,5.5463,3369.6,3367.0,0.2957832]
[1719714060824,5.5463,3368.5,3367.0,0.2957832]
[1719714061033,3.123,3368.3,3366.2,0.62318712]
[1719714061211,4.12217206,3368.4,3366.2,2.77]
[1719714061421,2.765,3367.7,3366.4,2.52838059]